bitfinex/quotes_ETHUSD_20251201
["timestamp","ask_amount","ask_price","bid_price","bid_amount"]
[1764577285482,1.66819345,2841.1,2841.0,0.001]
[1764577285869,1.17379345,2841.1,2841.0,0.001]
[1764577286047,1.17379345,2841.1,2841.0,0.4754]
[1764577286048,0.002,2841.1,2841.0,0.4754]
[1764577286255,0.002,2841.1,2841.0,0.9324]
[1764577287059,0.002,2841.1,2841.0,4.45228736]
[1764577291763,0.002,2841.1,2841.0,5.17788147]
[1764577291990,0.002,2841.1,2841.0,6.66201473]
[1764577293665,0.002,2841.1,2841.0,2.41653326]
[1764577293993,0.002,2841.1,2841.0,4.45228736]
[1764577294995,0.002,2841.1,2841.0,0.4754]
[1764577295209,0.002,2841.1,2841.0,0.001]
[1764577295210,0.33,2841.1,2841.0,0.001]
[1764577296175,0.7911,2841.1,2841.0,0.001]
[1764577296376,4.71636747,2841.1,2841.0,0.001]
[1764577296697,6.17671414,2841.1,2841.0,0.001]
[1764577300498,5.84941414,2841.1,2841.0,0.001]
[1764577300703,6.40101414,2841.1,2841.0,0.001]
[1764577301768,6.17801414,2841.1,2841.0,0.001]
[1764577301975,6.40101414,2841.1,2841.0,0.001]
[1764577302497,6.17801414,2841.1,2841.0,0.001]
[1764577302675,2.55265067,2841.1,2841.0,0.001]
[1764577302879,4.94066747,2841.1,2841.0,0.001]
[1764577305002,4.61206747,2841.1,2841.0,0.001]
[1764577305498,4.94066747,2841.1,2841.0,0.001]
[1764577305700,11.64220607,2841.1,2841.0,0.001]
[1764577306903,4.94066747,2841.1,2841.0,0.001]
[1764577307091,6.45705364,2841.1,2841.0,0.001]
[1764577311710,6.23405364,2841.1,2841.0,0.001]
[1764577311909,6.45705364,2841.1,2841.0,0.001]
[1764577313414,6.40705364,2841.1,2841.0,0.001]
[1764577313711,6.40905364,2841.1,2841.0,0.001]
[1764577314509,6.18605364,2841.1,2841.0,0.001]
[1764577314714,0.002,2841.1,2841.0,0.9423]
[1764577315410,0.002,2841.1,2841.0,4.46218736]
[1764577316816,0.002,2841.1,2841.0,0.9423]
[1764577317390,0.002,2841.1,2841.0,0.4877]
[1764577317585,0.002,2841.1,2841.0,0.001]
[1764577317908,0.002,2841.1,2841.0,0.4877]
[1764577319486,0.3252,2841.1,2841.0,0.001]
[1764577319703,0.7911,2841.1,2841.0,0.001]
[1764577320414,8.70366906,2841.1,2841.0,0.001]
[1764577320615,2.00213046,2841.1,2841.0,0.001]
[1764577321497,5.52189393,2841.1,2841.0,0.001]
[1764577322286,12.22343253,2841.1,2841.0,0.001]
[1764577323199,5.52189393,2841.1,2841.0,0.001]
[1764577323606,12.22343253,2841.1,2841.0,0.001]
[1764577328021,11.75753253,2841.1,2841.0,0.001]
[1764577328192,12.22343253,2841.1,2841.0,0.001]
[1764577329222,12.94902664,2841.1,2841.0,0.001]
[1764577329398,0.405504,2841.0,2840.8,0.001]
[1764577329604,9.49366305,2840.9,2840.8,0.001]
[1764577329803,9.80626305,2840.9,2840.8,0.001]
[1764577329997,13.79207431,2840.9,2840.8,0.001]
[1764577330517,13.84207431,2840.9,2840.8,0.001]
[1764577331624,13.84207431,2840.9,2840.5,0.001]
[1764577331625,1.13109811,2840.6,2840.5,0.001]
[1764577331823,44.54187531,2840.6,2840.5,0.001]
[1764577331994,52.04994133,2840.6,2840.1,0.001]
[1764577332197,0.405504,2840.4,2840.1,0.001]
[1764577332395,7.84333671,2840.3,2840.1,0.001]
[1764577332627,9.55046305,2840.3,2840.1,0.001]
[1764577334818,13.07121789,2840.3,2840.1,0.001]
[1764577335927,6.36967929,2840.3,2840.1,0.001]
[1764577340601,6.59267929,2840.3,2840.1,0.001]
[1764577343209,0.405504,2840.2,2840.1,0.001]
[1764577343411,8.66556906,2840.2,2840.1,0.001]
[1764577343626,12.18644787,2840.2,2840.1,0.001]
[1764577344235,12.40944787,2840.2,2840.1,0.001]
[1764577346935,11.95854787,2840.2,2840.1,0.001]
[1764577347111,12.40944787,2840.2,2840.1,0.001]
[1764577350041,11.65644787,2840.2,2840.1,0.489]
[1764577350210,10.22418187,2840.4,2840.1,0.489]
[1764577350211,3.52269236,2840.4,2840.1,1.1724]
[1764577350412,0.002,2840.4,2840.3,0.488]
[1764577350939,0.002,2840.4,2840.3,0.977]
[1764577351311,0.002,2840.4,2840.3,4.49775484]
[1764577351511,0.002,2840.4,2840.3,1.79839646]
[1764577351711,0.002,2840.4,2840.3,0.977]
[1764577352738,6.7035386,2840.4,2840.3,0.977]
[1764577353046,0.407504,2840.4,2840.3,0.9407]
[1764577353712,0.002,2840.4,2840.3,0.9407]
[1764577354543,0.002,2840.4,2840.3,0.455]
[1764577354961,0.407504,2840.4,2840.3,0.9407]
[1764577355314,0.002,2840.4,2840.3,0.9407]
[1764577355543,0.002,2840.4,2840.3,0.455]
[1764577355849,0.3191,2840.4,2840.1,0.1954]
[1764577356046,6.7015386,2840.3,2840.1,0.1954]
[1764577356213,6.7015386,2840.3,2840.1,0.6811]
[1764577356833,0.722604,2840.2,2840.1,0.001]
[1764577357319,0.405504,2840.2,2840.1,0.6486]
[1764577357547,0.405504,2840.2,2840.1,1.1343]
[1764577357742,0.002,2840.4,2840.1,1.1343]
[1764577358050,0.225,2840.4,2840.3,0.455]
[1764577358423,0.225,2840.4,2840.3,0.9407]
[1764577359041,0.002,2840.4,2840.3,0.9407]
[1764577362638,6.7035386,2840.4,2840.3,0.455]
[1764577364165,6.7035386,2840.4,2840.3,0.9407]
[1764577364363,0.002,2840.4,2840.3,0.9407]
[1764577365160,3.52263089,2840.4,2840.3,0.9407]
[1764577365391,3.92813489,2840.4,2840.3,0.455]
[1764577365562,5.12549749,2840.4,2840.1,0.1936]
[1764577365763,3.92813489,2840.4,2840.3,0.455]
[1764577367560,3.92813489,2840.4,2840.3,0.9407]
[1764577367740,0.405504,2840.3,2840.1,0.001]
[1764577367936,1.59849811,2840.2,2840.1,0.001]
[1764577368134,5.11937692,2840.2,2840.1,0.001]
[1764577371067,17.13030692,2840.2,2840.1,0.001]
[1764577372076,0.405504,2839.9,2839.6,0.001]
[1764577372292,10.99220446,2839.7,2839.6,0.001]
[1764577372494,11.58327952,2839.7,2839.6,0.001]
[1764577372661,12.04747952,2839.7,2839.6,0.001]
[1764577373169,0.405504,2839.5,2839.2,0.001]
[1764577373367,8.00370572,2839.4,2839.2,0.001]
[1764577374180,11.52557653,2839.4,2839.2,0.001]
[1764577374385,12.97985427,2839.4,2839.2,0.001]
[1764577374666,37.66327127,2839.4,2839.2,0.001]
[1764577374981,32.56159927,2839.4,2839.2,0.001]
[1764577375485,32.28859927,2839.4,2839.2,0.001]
[1764577375678,12.97985427,2839.4,2839.2,0.001]
[1764577375884,31.42600627,2839.4,2839.2,0.001]
[1764577376064,12.97985427,2839.4,2839.2,0.001]
[1764577377868,12.57435027,2839.4,2839.2,0.001]
[1764577378270,12.97985427,2839.4,2839.2,0.001]
[1764577379294,16.649761,2839.2,2838.4,0.1814]
[1764577379487,6.56001161,2839.1,2838.4,0.1814]
[1764577379796,0.405504,2838.6,2837.7,0.1888]
[1764577379983,0.405504,2837.8,2837.7,0.1888]
[1764577380306,0.426704,2837.8,2837.0,0.0352485]
[1764577380607,1.42529811,2837.7,2836.9,0.4738]
[1764577380770,1.45427774,2837.6,2836.9,0.4738]
[1764577380963,0.405504,2837.4,2836.9,0.4738]
[1764577381698,0.405504,2837.4,2837.3,0.4817]
[1764577381897,0.405504,2837.4,2836.9,0.4738]
[1764577382395,0.72559411,2837.3,2836.9,0.4738]
[1764577382606,0.223,2837.6,2837.3,0.4817]
[1764577382897,0.405504,2837.5,2837.4,0.4738]
[1764577383094,0.405504,2837.7,2837.5,0.4817]
[1764577383402,0.405504,2837.5,2837.3,0.4738]
[1764577383707,0.405504,2837.9,2837.3,0.4738]
[1764577383871,0.405504,2837.7,2837.5,0.4817]
[1764577384197,0.223,2837.6,2837.5,0.4817]
[1764577384401,0.405504,2837.5,2836.8,7.24270271]
[1764577384586,0.405504,2837.5,2836.9,0.72427027]
[1764577384791,0.405504,2837.5,2837.4,0.4817]
[1764577385895,0.628504,2837.5,2837.4,0.4817]
[1764577386394,3.92961591,2837.6,2837.4,0.4817]
[1764577386600,3.92961591,2837.6,2837.5,0.4817]
[1764577386906,1.44641214,2837.6,2837.5,0.4817]
[1764577387202,0.628504,2837.6,2837.5,0.4817]
[1764577387405,3.92960887,2837.6,2837.5,0.4817]
[1764577387570,0.628504,2837.6,2837.5,0.4817]
[1764577387976,0.628504,2837.6,2837.5,0.9555]
[1764577388607,0.405504,2837.6,2837.5,0.9555]
[1764577388903,0.628504,2837.6,2837.5,0.9555]
[1764577389111,0.405504,2837.6,2837.5,0.9555]
[1764577389284,0.405504,2837.6,2837.5,0.4817]
[1764577389489,0.405504,2837.6,2837.5,0.9555]
[1764577389991,0.405504,2837.6,2837.5,0.4817]
[1764577390190,0.89330589,2837.6,2837.5,0.4817]
[1764577390594,0.405504,2837.6,2837.5,0.9555]
[1764577393200,0.405504,2837.6,2837.5,0.4817]
[1764577393381,0.405504,2837.5,2837.0,0.4738]
[1764577393582,1.45899811,2837.5,2836.8,0.6664]
[1764577394619,0.405504,2837.3,2836.8,0.6664]
[1764577394915,0.96842106,2837.2,2836.8,0.6664]
[1764577396103,0.405504,2837.1,2836.3,3.52570866]
[1764577396414,0.405504,2837.1,2836.3,7.52522878]
[1764577396585,1.13109811,2837.1,2837.0,0.4817]
[1764577396780,4.65582406,2837.1,2837.0,0.4817]
[1764577396982,3.52410487,2837.6,2837.0,0.9555]
[1764577397212,7.04757992,2837.9,2837.6,0.4817]
[1764577397377,8.75813732,2838.4,2837.6,0.4817]
[1764577397378,3.52364815,2838.0,2837.6,0.4817]
[1764577397584,6.312815,2838.5,2837.6,0.9555]
[1764577397807,0.9040715,2838.4,2837.9,0.4817]
[1764577398008,0.223,2838.4,2837.9,0.9555]
[1764577398215,0.223,2838.4,2838.3,0.4817]
[1764577398909,1.35409811,2838.4,2838.3,0.4817]
[1764577399196,0.94859411,2838.4,2838.3,0.4817]
[1764577399397,0.223,2838.4,2838.3,0.9555]
[1764577399599,0.223,2838.4,2837.9,3.52370524]
[1764577399600,0.94859411,2838.4,2838.0,0.4738]
[1764577399804,0.223,2838.4,2838.3,0.4817]
[1764577400006,0.628504,2838.4,2838.3,0.4817]
[1764577400223,0.6831,2838.9,2838.3,0.9555]
[1764577400432,0.72559411,2838.7,2838.3,0.9555]
[1764577400611,0.72559411,2838.6,2838.3,0.9555]
[1764577401016,0.72559411,2838.6,2838.3,0.4738]
[1764577401017,0.405504,2838.5,2838.3,0.4738]
[1764577401333,0.628504,2838.5,2838.3,0.4738]
[1764577401538,0.628504,2838.5,2838.4,0.4817]
[1764577402625,0.405504,2838.3,2837.8,3.52376534]
[1764577402825,0.405504,2838.3,2837.8,0.4818]
[1764577403024,1.71070672,2838.3,2837.5,0.4818]
[1764577403829,2.43630083,2838.3,2837.5,0.4818]
[1764577404809,0.72559411,2838.1,2837.5,4.00600667]
[1764577405022,0.223,2838.0,2837.5,4.00600667]
[1764577405347,0.223,2838.0,2837.6,0.4818]
[1764577406344,1.05844763,2838.0,2837.3,0.4818]
[1764577406646,0.60184763,2838.0,2837.3,0.4818]
[1764577406842,3.92931293,2837.9,2837.3,4.0062681]
[1764577407347,4.65483044,2837.9,2837.8,0.4874]
[1764577407646,5.47273289,2837.9,2837.8,0.4874]
[1764577407844,1.94900056,2837.9,2837.8,0.4874]
[1764577408144,5.47273289,2837.9,2837.8,0.4874]
[1764577408837,1.94900056,2837.9,2837.8,0.4874]
[1764577409043,5.47273289,2837.9,2837.8,0.4874]
[1764577409452,1.94900056,2837.9,2837.8,0.4874]
[1764577409743,9.35256522,2837.9,2837.3,0.4818]
[1764577409915,5.82883289,2837.9,2837.4,0.4818]
[1764577410241,0.405504,2837.7,2837.4,0.4818]
[1764577410745,0.405504,2837.7,2837.6,0.4874]
[1764577411144,0.405504,2837.7,2837.6,0.9692]
[1764577411656,0.72559411,2837.9,2837.6,0.9692]
[1764577411821,1.35409811,2837.9,2837.8,0.4874]
[1764577413121,1.13109811,2837.9,2837.8,0.9692]
[1764577413322,1.13109811,2837.9,2837.8,0.4874]
[1764577414516,0.405504,2837.9,2837.8,0.9443]
[1764577415760,0.405504,2837.9,2837.8,4.91499134]
[1764577416346,0.405504,2837.9,2837.8,1.39113484]
[1764577416661,0.405504,2837.9,2837.8,0.9443]
[1764577417357,0.405504,2837.9,2837.8,4.4681565]
[1764577420054,0.628504,2838.3,2837.8,4.4681565]
[1764577420251,0.628504,2838.3,2837.9,0.4569]
[1764577420451,0.628504,2838.3,2837.7,3.52392518]
[1764577421149,0.628504,2838.3,2837.8,0.4569]
[1764577421448,0.628504,2838.3,2837.8,3.98064722]
[1764577421851,0.628504,2838.3,2837.9,0.4569]
[1764577423065,0.628504,2838.3,2838.2,0.4527]
[1764577423772,4.15173973,2838.3,2838.2,0.4527]
[1764577424277,4.15173973,2838.3,2837.9,3.98063141]
[1764577424556,10.8683863,2838.3,2838.0,0.4569]
[1764577426459,10.8683863,2838.3,2837.8,3.98069532]
[1764577426661,11.3391863,2838.3,2837.8,3.98069532]
[1764577426861,7.34515057,2838.3,2837.9,0.4569]
[1764577427727,7.34515057,2838.3,2838.2,0.4527]
[1764577428158,11.2076863,2838.3,2837.9,0.4569]
[1764577428474,0.405504,2837.9,2837.6,3.52407898]
[1764577428841,0.405504,2837.9,2837.8,0.4527]
[1764577429232,0.744804,2837.9,2837.5,3.52415943]
[1764577429863,0.744804,2837.9,2837.6,0.4569]
[1764577430155,0.405504,2837.9,2837.6,3.98093196]
[1764577430358,0.405504,2837.9,2837.8,0.4527]
[1764577431267,6.18634354,2837.9,2837.4,0.001]
[1764577431464,0.405504,2837.7,2837.4,3.98225007]
[1764577432150,0.405504,2837.5,2837.4,0.4579]
[1764577432535,0.405504,2837.7,2837.4,4.43495328]
[1764577432737,0.405504,2837.7,2837.6,0.4527]
[1764577434169,0.405504,2837.6,2837.4,4.00374455]
[1764577434471,0.405504,2837.6,2837.5,0.4696]
[1764577434678,0.405504,2837.6,2837.5,0.9481]
[1764577435176,0.405504,2837.6,2837.5,0.9491]
[1764577436067,6.71664657,2837.9,2837.5,0.9491]
[1764577436260,0.405504,2837.8,2837.6,4.00256501]
[1764577436461,0.405504,2837.8,2837.7,0.9481]
[1764577437180,0.405504,2837.8,2837.7,0.4696]
[1764577437473,0.405504,2837.8,2837.7,0.9481]
[1764577438274,0.628504,2838.0,2837.7,0.9481]
[1764577438480,5.64071777,2838.0,2837.7,0.9481]
[1764577439170,2.11710949,2838.0,2837.7,0.9481]
[1764577440074,1.89410949,2838.0,2837.9,0.4696]
[1764577440274,2.11710949,2838.0,2837.9,0.4696]
[1764577440511,0.002,2838.3,2837.9,0.4696]
[1764577440680,0.223,2838.1,2837.9,4.00223233]
[1764577440876,0.223,2838.1,2837.7,3.52386457]
[1764577440877,0.405504,2838.0,2837.7,0.4785]
[1764577441061,0.405504,2838.0,2837.8,0.4785]
[1764577441380,0.405504,2838.0,2837.9,0.4696]
[1764577442082,0.405504,2838.0,2837.9,0.9481]
[1764577442672,0.405504,2838.0,2837.9,0.4696]
[1764577444986,0.405504,2838.1,2837.9,0.4696]
[1764577445670,0.405504,2838.1,2838.0,0.4696]
[1764577449081,10.96913459,2838.1,2837.6,3.52403774]
[1764577449286,7.93795057,2838.1,2837.6,3.52403774]
[1764577449469,10.96915808,2838.1,2837.6,3.52403774]
[1764577449770,10.96915808,2838.1,2837.7,0.4785]
[1764577450592,7.44565057,2838.1,2837.7,0.4785]
[1764577450983,0.002,2838.3,2838.0,0.4696]
[1764577451189,0.002,2838.3,2838.2,0.4696]
[1764577451402,0.002,2838.3,2838.2,0.6499]
[1764577451570,0.002,2838.3,2838.2,1.8980868]
[1764577452092,0.405504,2838.2,2838.0,0.1803]
[1764577452387,0.002,2838.3,2838.0,3.70388429]
[1764577452573,0.002,2838.3,2838.2,0.4696]
[1764577453463,0.002,2838.3,2838.2,0.9481]
[1764577453888,0.002,2838.3,2838.2,0.4696]
[1764577454587,0.002,2838.3,2838.0,3.7038427]
[1764577454969,0.002,2838.3,2838.0,4.1823427]
[1764577457729,0.002,2838.3,2838.0,0.6588]
[1764577457913,0.405504,2838.2,2837.9,0.001]
[1764577458121,0.405504,2838.2,2837.9,0.4795]
[1764577458632,0.405504,2838.2,2837.9,4.00323134]
[1764577458928,0.405504,2838.0,2837.9,0.001]
[1764577459094,0.733304,2838.0,2837.9,0.001]
[1764577459293,0.405504,2838.0,2837.9,0.4706]
[1764577460609,7.12215057,2838.1,2837.9,0.4706]
[1764577460833,0.3278,2838.0,2837.9,0.001]
[1764577461207,0.405504,2838.2,2837.9,0.9491]
[1764577461411,0.405504,2838.2,2838.1,0.4696]
[1764577461930,0.733304,2838.2,2837.9,0.4795]
[1764577462106,0.733304,2838.2,2837.9,4.00323052]
[1764577462424,0.002,2838.3,2838.1,0.4696]
[1764577463124,0.405504,2838.2,2838.1,0.4696]
[1764577463324,0.774104,2838.2,2837.9,0.001]
[1764577463530,6.71664657,2838.1,2837.9,0.001]
[1764577463829,6.71664657,2838.1,2837.9,0.4802]
[1764577464001,7.12215057,2838.1,2838.0,0.4972]
[1764577464200,0.405504,2838.1,2838.0,0.4972]
[1764577465434,0.002,2838.3,2838.0,8.05885242]
[1764577465620,0.002,2838.3,2838.2,0.6911]
[1764577466133,0.002,2838.3,2838.2,0.4972]
[1764577466340,0.002,2838.3,2838.2,4.02055987]
[1764577469606,0.002,2838.3,2838.2,0.4972]
[1764577470507,0.002,2838.3,2838.2,4.49975987]
[1764577470709,0.002,2838.3,2838.2,4.97555934]
[1764577472597,0.002,2838.3,2838.2,4.49975987]
[1764577478944,0.002,2838.3,2838.2,0.9764]
[1764577479150,0.002,2838.3,2838.2,4.49975987]
[1764577480163,0.405504,2838.2,2837.9,0.001]
[1764577480325,7.12525057,2838.2,2837.9,0.001]
[1764577480646,7.57975057,2838.2,2837.9,3.52472398]
[1764577480942,7.57975057,2838.2,2837.9,0.001]
[1764577483341,7.12215057,2838.2,2837.9,0.001]
[1764577483839,7.57665057,2838.2,2837.9,0.001]
[1764577484023,7.56844161,2838.2,2837.9,0.001]
[1764577484420,0.3496,2838.0,2837.9,0.001]
[1764577484745,6.50644398,2838.0,2837.9,0.001]
[1764577484924,1.75026444,2838.0,2837.9,0.001]
[1764577485120,0.72559411,2838.1,2837.9,0.4595]
[1764577485533,0.3506,2838.0,2837.9,0.001]
[1764577486024,0.756104,2838.0,2837.9,0.001]
[1764577487238,1.208504,2838.0,2837.9,0.001]
[1764577488150,0.405504,2838.0,2837.9,0.4595]
[1764577488750,0.405504,2838.0,2837.9,0.001]
[1764577488955,0.755104,2838.0,2837.9,0.001]
[1764577489559,4.73211217,2838.0,2837.9,0.001]
[1764577489760,0.755104,2838.0,2837.9,0.001]
[1764577494259,11.38445516,2838.0,2837.9,0.001]
[1764577494460,11.38445516,2838.0,2837.6,0.001]
[1764577494461,7.28794209,2837.7,2837.6,0.001]
[1764577494755,7.51544209,2837.7,2837.6,0.001]
[1764577494958,7.97304209,2837.7,2837.6,0.001]
[1764577495135,8.7884163,2837.7,2837.6,0.001]
[1764577497337,11.63179698,2837.7,2837.6,0.001]
[1764577497558,7.51544209,2837.7,2837.6,0.001]
[1764577498860,11.03942277,2837.7,2837.6,0.001]
[1764577499537,11.49702277,2837.7,2837.6,0.001]
[1764577500535,0.223,2838.1,2837.6,0.9726]
[1764577500760,3.74651774,2838.1,2837.6,0.4886]
[1764577501063,0.405504,2837.8,2837.6,0.001]
[1764577503562,1.209604,2837.7,2837.6,0.001]
[1764577504772,0.752004,2837.7,2837.6,0.001]
[1764577505763,0.405504,2837.7,2837.6,0.9726]
[1764577505966,0.405504,2837.7,2837.6,0.485]
[1764577506340,0.002,2838.3,2837.6,0.9726]
[1764577506562,0.002,2838.3,2838.2,0.6683]
[1764577506758,0.002,2838.3,2838.2,0.484]
[1764577507069,0.002,2838.3,2838.2,0.9716]
[1764577507771,0.002,2838.3,2838.2,4.49495987]
[1764577507960,0.002,2838.3,2838.2,5.33753311]
[1764577510073,0.4748,2838.3,2837.9,0.14121725]
[1764577510271,0.0033,2838.2,2838.0,0.223]
[1764577510473,0.002,2838.3,2837.9,4.01126827]
[1764577510775,0.002,2838.3,2838.1,0.484]
[1764577510947,0.002,2838.3,2838.2,0.484]
[1764577511674,0.002,2838.3,2838.2,0.9716]
[1764577511852,0.405504,2838.2,2837.7,4.80605802]
[1764577512058,0.405504,2838.2,2837.8,0.4876]
[1764577512268,0.405504,2838.2,2838.1,0.484]
[1764577512642,0.753104,2838.2,2837.7,4.22772788]
[1764577512948,0.753104,2838.2,2837.8,0.4876]
[1764577513151,0.407504,2838.3,2837.9,0.03523732]
[1764577513471,0.407504,2838.3,2837.8,0.4876]
[1764577513965,0.407504,2838.3,2837.9,0.03523732]
[1764577514165,0.407504,2838.3,2837.8,0.4876]
[1764577515175,0.865104,2838.3,2837.8,4.01134242]
[1764577515370,0.3465,2837.9,2837.6,0.001]
[1764577515611,6.15684398,2838.2,2837.6,0.001]
[1764577515612,1.13109811,2838.1,2837.6,0.001]
[1764577516047,0.4576,2838.0,2837.6,0.001]
[1764577516463,0.4576,2838.0,2837.6,3.52509493]
[1764577516673,0.4576,2838.0,2837.6,4.01269493]
[1764577517572,0.4576,2838.0,2837.6,4.01269593]
[1764577517778,3.98121266,2838.0,2837.6,0.4886]
[1764577518564,0.4576,2838.0,2837.6,4.01268506]
[1764577518759,0.407504,2838.3,2837.9,0.484]
[1764577518964,4.38837238,2838.3,2837.9,0.484]
[1764577519476,3.93077238,2838.3,2837.9,0.484]
[1764577519683,0.405504,2838.2,2837.9,0.484]
[1764577520485,0.863104,2838.2,2837.9,0.484]
[1764577520991,0.405504,2838.2,2837.9,0.484]
[1764577521187,0.405504,2838.1,2837.9,0.484]
[1764577521394,0.3465,2838.0,2837.7,4.01151153]
[1764577521775,0.3465,2838.0,2837.7,0.4876]
[1764577521953,0.3465,2838.0,2837.6,3.52509013]
[1764577522153,0.3465,2838.0,2837.6,4.01269013]
[1764577522677,0.405504,2838.1,2837.9,0.484]
[1764577523391,0.3451,2838.0,2837.7,4.01156587]
[1764577523752,0.3451,2838.0,2837.7,0.4876]
[1764577523958,0.3451,2838.0,2837.7,4.01157212]
[1764577524394,0.3451,2838.0,2837.7,0.4876]
[1764577524696,0.3451,2838.0,2837.6,3.52506241]
[1764577524864,0.3451,2838.0,2837.6,4.00726241]
[1764577525464,0.750604,2838.0,2837.9,0.001]
[1764577525687,1.208504,2838.0,2837.9,0.001]
[1764577525885,0.750604,2838.0,2837.9,0.001]
[1764577526684,0.405504,2838.0,2837.9,0.4568]
[1764577528089,0.750604,2838.0,2837.9,0.001]
[1764577529582,0.405504,2838.0,2837.9,0.4568]
[1764577530192,0.002,2838.3,2837.9,8.02170198]
[1764577530398,0.407504,2838.3,2837.9,4.46273233]
[1764577530575,0.002,2838.3,2838.2,0.4558]
[1764577530764,0.002,2838.3,2838.2,0.938]
[1764577531785,0.002,2838.3,2838.2,4.46135987]
[1764577532468,0.738404,2838.3,2837.9,0.79965469]
[1764577532790,0.407504,2838.3,2838.2,0.4886]
[1764577534164,0.739904,2838.3,2838.0,0.4875]
[1764577534496,0.739904,2838.3,2838.0,4.01109262]
[1764577535063,0.407504,2838.3,2838.2,0.4886]
[1764577535262,0.407504,2838.3,2838.0,3.52359262]
[1764577535486,0.407504,2838.3,2838.0,4.0463287]
[1764577535687,0.407504,2838.3,2838.0,4.01109262]
[1764577536185,0.407504,2838.3,2838.0,3.52359262]
[1764577536388,0.891904,2838.3,2838.0,3.52359262]
[1764577536894,0.891904,2838.3,2837.9,0.224]
[1764577536895,0.3309,2838.1,2837.9,0.224]
[1764577537692,0.407504,2838.3,2838.0,0.4886]
[1764577537881,0.407504,2838.3,2837.9,7.27142865]
[1764577538115,0.891904,2838.3,2837.9,7.75892865]
[1764577538474,0.407504,2838.3,2837.9,7.75892865]
[1764577538799,0.407504,2838.3,2838.0,0.4875]
[1764577540605,0.407504,2838.3,2838.0,4.04628093]
[1764577542279,0.407504,2838.3,2838.0,4.01104485]
[1764577542479,0.3309,2838.1,2837.9,3.74766226]
[1764577542678,0.3309,2838.1,2837.9,0.224]
[1764577543397,0.405504,2838.2,2838.0,0.4886]
[1764577543578,0.405504,2838.2,2838.1,0.4886]
[1764577543779,0.002,2838.3,2838.1,0.4886]
[1764577544001,0.736404,2838.2,2837.9,0.224]
[1764577544372,0.405504,2838.2,2837.9,0.4885]
[1764577544590,0.405504,2838.2,2837.9,0.001]
[1764577544787,0.889904,2838.2,2837.9,0.001]
[1764577545402,0.3309,2838.0,2837.9,0.001]
[1764577550622,0.405504,2838.2,2837.9,0.4896]
[1764577550807,0.002,2838.3,2838.0,0.4886]
[1764577551008,0.405504,2838.2,2838.0,0.4886]
[1764577551314,0.405504,2838.2,2837.9,0.001]
[1764577551315,7.04729868,2838.1,2837.9,0.001]
[1764577551497,0.0033,2838.0,2837.9,0.001]
[1764577551681,0.4877,2838.0,2837.9,0.001]
[1764577552512,0.0033,2838.0,2837.9,0.001]
[1764577552716,0.893204,2838.0,2837.9,0.001]
[1764577554489,0.408804,2838.0,2837.9,0.001]
[1764577556189,0.405504,2838.0,2837.9,0.4651]
[1764577556393,0.002,2838.3,2837.9,0.9174]
[1764577556604,4.15377237,2838.3,2837.9,0.9174]
[1764577556800,4.65347237,2838.3,2837.9,0.4651]
[1764577557005,0.405504,2838.1,2837.9,0.4651]
[1764577557590,0.405504,2838.2,2837.9,0.001]
[1764577557797,0.405504,2838.2,2837.9,0.4533]
[1764577559216,0.405504,2838.2,2837.9,0.001]
[1764577560904,0.905204,2838.2,2837.9,0.001]
[1764577563500,0.405504,2838.2,2837.9,0.4533]
[1764577563888,0.3158,2838.0,2837.9,0.001]
[1764577564117,0.8136,2838.0,2837.9,0.001]
[1764577564314,0.3158,2838.0,2837.9,0.001]
[1764577565117,0.8136,2838.0,2837.9,0.001]
[1764577565317,0.3158,2838.0,2837.9,0.001]
[1764577565630,7.61970268,2838.2,2837.9,0.4651]
[1764577565814,0.3176,2838.0,2837.9,0.001]
[1764577569119,1.219104,2838.0,2837.9,0.001]
[1764577569804,0.723104,2838.0,2837.9,0.001]
[1764577576129,0.725104,2838.0,2837.9,0.001]
[1764577576421,0.407504,2838.0,2837.9,0.4651]
[1764577576598,0.407504,2838.0,2837.9,0.9174]
[1764577577932,0.723304,2838.0,2837.9,0.001]
[1764577578139,1.221104,2838.0,2837.9,0.001]
[1764577580522,0.723304,2838.0,2837.9,0.001]
[1764577582324,0.407504,2838.0,2837.9,0.4651]
[1764577582525,0.407504,2838.0,2837.9,0.9174]
[1764577584142,0.407504,2838.0,2837.9,0.4651]
[1764577585244,4.24871217,2838.0,2837.9,0.001]
[1764577585748,0.725104,2838.0,2837.9,0.001]
[1764577586546,0.407504,2838.0,2837.9,1.01823732]
[1764577586750,0.407504,2838.0,2837.9,0.52253732]
[1764577586948,0.758404,2838.0,2837.9,0.53193732]
[1764577587256,0.407504,2838.0,2837.9,0.9643]
[1764577588044,0.758404,2838.0,2837.9,0.001]
[1764577588234,4.74511217,2838.0,2837.9,0.001]
[1764577588554,6.24362317,2838.0,2837.9,0.001]
[1764577589247,2.720015,2838.0,2837.9,0.001]
[1764577589454,4.74511217,2838.0,2837.9,0.001]
[1764577589816,1.221504,2838.0,2837.9,0.001]
[1764577590021,4.74511217,2838.0,2837.9,0.001]
[1764577592359,5.82270628,2838.0,2837.9,0.001]
[1764577592526,6.28520628,2838.0,2837.9,0.001]
[1764577592727,7.93771559,2838.0,2837.9,0.001]
[1764577598767,14.30211427,2838.0,2837.9,0.001]
[1764577599335,0.002,2838.0,2837.9,0.9301]